Workbook

Sheet 机械技术应用系
A1: 桂林技师学院实习耗材采购计划表
A2: 机电工程系（2025-2026学年）
A3: 机械加工专业
A4: 序号 | B4: 项目名称 | C4: 参考品牌、型号、规格 | D4: 技术参数、性能指标要求 | E4: 单位 | F4: 数量 | G4: 单价 | H4: 合计 | I4: 备注
A5: 1 | B5: 圆钢 | C5: φ65 | D5: 20米碳圆、10米GGr15 | E5: 米 | F5: 30 | G5: 165 | H5: =G5*F5 -> 4950 | I5: 20米碳圆、10米GGr15 | J5: 数车
A6: 2 | B6: 圆钢 | C6: φ50 | D6: 20米碳圆、16米Gr12mov | E6: 米 | F6: 36 | G6: 125 | H6: =G6*F6 -> 4500 | I6: 20米碳圆、16米Gr12mov
A7: 3 | B7: 圆钢 | C7: φ45 | D7: 20米碳圆、20米3Gr13 | E7: 米 | F7: 40 | G7: 108 | H7: 4320 | I7: 20米碳圆、20米3Gr13
A8: 4 | B8: 圆钢 | C8: φ60 | D8: 14米碳圆、10米9Gr18mov | E8: 米 | F8: 24 | G8: 160 | H8: 3840 | I8: 20米碳圆、10米9Gr18mov
A9: 5 | B9: 铜皮 | C9: 0.5厚 | D9: 300mm×3m | E9: 米 | F9: 3 | G9: 120 | H9: 360 | I9: 紫铜
A10: 6 | B10: 电动扳手（大扭矩） | C10: 东成、298B（4.0） | D10: 拆卸三爪卡盘卡爪使用 | E10: 把 | F10: 1 | G10: 400 | H10: 400 | I10: 东成
A11: 7 | B11: 三爪内径千分尺 | C11: 哈量量具、16-20mm | E11: 把 | F11: 2 | G11: 455 | H11: 910 | I11: 桂量量具、哈量量具
A12: 8 | B12: 三爪内径千分尺 | C12: 哈量量具、25-30mm | E12: 把 | F12: 2 | G12: 640 | H12: 1280 | I12: 桂量量具、哈量量具
A13: 9 | B13: 三爪内径千分尺 | C13: 哈量量具、50-63mm | E13: 把 | F13: 2 | G13: 859 | H13: 1718 | I13: 桂量量具、哈量量具
A14: 10 | B14: 外径千分尺 | C14: 哈量量具、50-75mm | E14: 把 | F14: 5 | G14: 130 | H14: 650 | I14: 桂量量具、哈量量具
A15: 11 | B15: 外圆车刀 | C15: MCLNR2020K12 | D15: 加工钢件 | E15: 把 | F15: 15 | G15: 80 | H15: 1200 | I15: 三菱、山特维克、京瓷
A16: 12 | B16: 外圆车刀片 | C16: MCLNR2020K12 | D16: 加工钢件、刀尖圆弧R0.4 | E16: 盒 | F16: 12 | G16: 120 | H16: 1440 | I16: 三菱、山特维克、京瓷
A17: 13 | B17: 切槽刀 | C17: MGEHR2020K-3 | D17: 加工钢件 | E17: 把 | F17: 15 | G17: 80 | H17: 1200 | I17: 三菱、山特维克、京瓷
A18: 14 | B18: 切槽刀片 | C18: S16Q-SCLCR09 | D18: 加工钢件、刀尖圆弧R0.2 | E18: 盒 | F18: 15 | G18: 120 | H18: 1800 | I18: 三菱、山特维克、京瓷
A19: 15 | B19: 盲孔车刀 | C19: S16Q-SCLCR09 | D19: 加工钢件 | E19: 把 | F19: 10 | G19: 80 | H19: 800 | I19: 三菱、山特维克、京瓷
A20: 16 | B20: 盲孔车刀片 | C20: S16Q-SCLCR09 | D20: 加工钢件、刀尖圆弧R0.4 | E20: 盒 | F20: 15 | G20: 120 | H20: 1800 | I20: 三菱、山特维克、京瓷
A21: 17 | B21: 仿形车刀 | C21: MVJNR2020K16 | D21: 加工钢件 | E21: 把 | F21: 10 | G21: 80 | H21: 800 | I21: 三菱、山特维克、京瓷
A22: 18 | B22: 仿形车刀刀片 | C22: MVJNR2020K16 | D22: 加工钢件、刀尖圆弧R0.4 | E22: 盒 | F22: 15 | G22: 120 | H22: 1800 | I22: 三菱、山特维克、京瓷
A23: 19 | B23: 外螺纹车刀 | C23: SER2020K16 | D23: 加工钢件 | E23: 把 | F23: 12 | G23: 80 | H23: 960 | I23: 三菱、山特维克、京瓷
A24: 20 | B24: 外螺纹车刀刀片 | C24: SER2020K16 | D24: 加工钢件、16ER-AG60-LDA | E24: 盒 | F24: 12 | G24: 120 | H24: 1440 | I24: 三菱、山特维克、京瓷
A25: 21 | B25: 内螺纹车刀 | C25: SNR0016Q16 | D25: 加工钢件 | E25: 把 | F25: 16 | G25: 80 | H25: 1280 | I25: 三菱、山特维克、京瓷
A26: 22 | B26: 内螺纹车刀刀片 | C26: SNR0016Q16 | D26: 加工钢件、16IR-AG60-LDA | E26: 盒 | F26: 15 | G26: 120 | H26: 1800 | I26: 三菱、山特维克、京瓷
A27: 23 | B27: 内孔刀座 | C27: SBHA20-16、配S16Q-SCLCR09 | D27: 中心高20孔16 | E27: 个 | F27: 15 | G27: 75 | H27: 1125 | I27: 三菱、山特维克、京瓷
A28: 24 | B28: 外圆刀刀垫 | C28: 配MCLNR2020K12 | D28: 65mn | E28: 盒 | F28: 2 | G28: 8 | H28: 16 | I28: 65mn
A29: 25 | B29: 仿形刀刀垫 | C29: 配MVJNR2020K16 | D29: 65mn | E29: 盒 | F29: 2 | G29: 8 | H29: 16 | I29: 65mn
A30: 26 | B30: 外螺纹刀刀垫 | C30: 配SER2020K16 | D30: 65mn | E30: 盒 | F30: 2 | G30: 8 | H30: 16 | I30: 65mn
A31: 27 | B31: 切削液 | C31: 汇众 英飞凡 | E31: 桶 | F31: 4 | G31: 280 | H31: 1120 | I31: 汇众 英非凡
A32: 28 | B32: 护目镜 | C32: 3M护目镜1611 | E32: 副 | F32: 10 | G32: 30 | H32: 300 | I32: 3M
A33: 29 | B33: 卡盘扳手 | C33: 12方，12mm×12mm | E33: 副 | F33: 5 | G33: 10 | H33: 50
A34: 30 | B34: 刀架扳手 | C34: 12方，12mm×12mm | E34: 副 | F34: 5 | G34: 10 | H34: 50
A35: 31 | B35: A型中心钻 | C35: Φ3 | D35: 上工172老标护柄10mm | E35: 支 | F35: 50 | G35: 10 | H35: 500 | J35: 钳工 普铣 线切割
A36: 32 | B36: 盘铣刀 | C36: 100 | D36: 山特维克 | E36: 把 | F36: 4 | G36: 320 | H36: 1280 | I36: 山特维克、三菱/狮王
A37: 33 | B37: 四刃硬质合金刀 | C37: GM-4E-D6.0 | D37: Ф6mm | E37: 把 | F37: 40 | G37: 25 | H37: 1000 | I37: 株钻
A38: 34 | B38: 四刃硬质合金刀 | C38: GM-4E-D10.0 | D38: Ф10mm | E38: 把 | F38: 40 | G38: 35 | H38: =G38*F38 -> 1400 | I38: 株钻
A39: 35 | B39: 可转位铣刀片 | C39: Apmt113508PDER-CW SW.5080 | E39: 片 | F39: 20 | G39: 18 | H39: 360 | I39: 山特维克、三菱/狮王
A40: 36 | B40: 可转位铣刀片 | C40: Apmt160408PDER-CW SW.5080 | E40: 片 | F40: 20 | G40: 24 | H40: 480 | I40: 山特维克、三菱/狮王
A41: 37 | B41: 丝锥 | C41: ASF335-螺旋山特维克 | D41: M5mm | E41: 支 | F41: 50 | G41: 23 | H41: 1150 | I41: 螺旋山特维克
A42: 38 | B42: 丝锥 | C42: ASF335-螺旋山特维克 | D42: M6mm | F42: 50 | G42: 25 | H42: 1250 | I42: 螺旋山特维克
A43: 39 | B43: 丝锥 | C43: S335-ASF螺旋山特维克 | D43: M8mm | E43: 支 | F43: 50 | G43: 28 | H43: 1400 | I43: 螺旋山特维克
A44: 40 | B44: 丝锥 | C44: S335-ASF螺旋山特维克 | D44: M10mm | E44: 支 | F44: 50 | G44: 32 | H44: 1600 | I44: 螺旋山特维克
A45: 41 | B45: 丝锥 | C45: S335-ASF螺旋山特维克 | D45: M12mm | E45: 支 | F45: 40 | G45: 42 | H45: 1680 | I45: 螺旋山特维克
A46: 42 | B46: 铣刀 | C46: GM-2E-D16.0 | D46: Ф16 | E46: 把 | F46: 20 | G46: 85 | H46: 1700 | I46: 上工三刃加长
A47: 43 | B47: 铣刀 | C47: GM-4E-D20.0 | D47: Ф20 | E47: 把 | F47: 20 | G47: 30 | H47: 600 | I47: 株钻
A48: 44 | B48: 铣刀 | C48: GM-4E-D22.0 | D48: Ф22 | E48: 把 | F48: 20 | G48: 42 | H48: 840 | I48: 株钻
A49: 45 | B49: 板材 | C49: 1200mm*80mm*8mm | D49: 碳板30米、65Mn50米 | E49: 米 | F49: 80 | G49: 90 | H49: 7200 | I49: 株钻
A50: 46 | B50: 板材 | C50: 1200mm*80mm*100mm | D50: 碳板20米、201板20米 | E50: 米 | F50: 40 | G50: 105 | H50: 4200
A51: 47 | B51: 板材 | C51: 1200mm*100mm*12mm | D51: 碳板10米、301板10米 | E51: 米 | F51: 20 | G51: 130 | H51: 2600
A52: 48 | B52: 四方铣刀片 | D52: 11T308M | E52: 盒 | F52: 10 | G52: 300 | H52: 3000 | I52: 山特维克 株钻
A53: 49 | B53: 带表游标卡尺 | C53: 成量上工哈量 | D53: 150mm精度±0.01 | E53: 把 | F53: 5 | G53: 232 | H53: 1160 | I53: 成量上工哈量
A54: 50 | B54: 外径千分尺 | C54: 成量上工哈量 | D54: 0-25mm | E54: 把 | F54: 10 | G54: 152 | H54: 1520 | I54: 成量上工哈量
A55: 51 | B55: 外径千分尺 | C55: 成量上工哈量 | D55: 25-50mm | E55: 把 | F55: 5 | G55: 182 | H55: 910 | I55: 成量上工哈量
A56: 52 | B56: 六面光平口钳 | C56: 精展 | D56: HLG40H | E56: 台 | F56: 8 | G56: 800 | H56: 6400 | I56: 精展
A57: 53 | B57: 锯片 | C57: 瑞典鱼唛18T | D57: 300mm | E57: 片 | F57: 6000 | G57: 1.2 | H57: 7200 | I57: 瑞典鱼唛 国产
A58: 54 | B58: 平板锉 | C58: 03918 | D58: 12寸粗齿 | E58: 把 | F58: 50 | G58: 55 | H58: 2750 | I58: 世达、百固
A59: 55 | B59: 平板锉 | C59: 03915 | D59: 6寸粗齿 | E59: 把 | F59: 50 | G59: 35 | H59: 1750 | I59: 世达、百固
A60: 56 | B60: 三角锉 | C60: 03994 | D60: 6寸 | E60: 把 | F60: 50 | G60: 40 | H60: 2000 | I60: 世达、百固
A61: 57 | B61: 钼丝 | C61: 3000米 | D61: 0.2 | E61: 卷 | F61: 6 | G61: 450 | H61: 2700 | I61: 长城
A62: 58 | B62: 毛刷 | C62: 尼龙毛刷 | D62: 4寸 | E62: 把 | F62: 50 | G62: 6 | H62: 300 | I62: 3寸尼龙毛刷
A63: 59 | B63: 水性油 | D63: SQB-61/25kg/桶 | E63: 桶 | F63: 4 | G63: 550 | H63: 2200 | I63: 狄龙
A64: 60 | B64: 砂轮金钢笔 | D64: 3.5mm进口cvd金刚石 | E64: 支 | F64: 5 | G64: 60 | H64: 300 | I64: 3.5mm进口cvd金刚石
A65: 61 | B65: 板材 | C65: 150*90*30 | D65: Gr12mov | F65: 30 | G65: 40 | H65: 1200 | I65: Gr12mov
A66: 62 | B66: 板材 | C66: 90*80*25 | D66: Gr12mov | F66: 30 | G66: 18 | H66: 540 | I66: Gr12mov
A67: 63 | B67: 板材 | C67: 56*56*10 | D67: SKD11 | F67: 15 | G67: 15 | H67: 225 | I67: SKD11
A68: 64 | B68: 板材 | C68: 40*40*55 | D68: SKD11 | F68: 15 | G68: 15 | H68: 225 | I68: SKD11
A69: 65 | B69: 弹簧 | C69: Ф10mm*8*1 | F69: 30 | G69: 5 | H69: 150
A70: 66 | B70: 导柱 | C70: Ф12*110 | F70: 60 | G70: 18 | H70: =G70*F70 -> 1080
A71: 67 | B71: 导套 | C71: Ф18*45 | F71: 60 | G71: 10 | H71: 600
A72: 68 | B72: 板材 | C72: 195*133*18 | D72: P20 | F72: 15 | G72: 51 | H72: 765 | I72: P20
A73: 69 | B73: 板材 | C73: Ф100*18 | D73: S136 | F73: 15 | G73: 18 | H73: 270 | I73: S136
A74: 70 | B74: 板材 | C74: 195*133*15 | D74: Gr12mov | F74: 15 | G74: 45 | H74: 675 | I74: Gr12mov
A75: 71 | B75: A型浇口套 | C75: Ф30*57 | F75: 15 | G75: 7 | H75: 105
A76: 72 | B76: 板材 | C76: 220*194*20 | D76: Gr12mov | F76: 30 | G76: 102 | H76: 3060 | I76: Gr12mov
A77: 73 | B77: 板材 | C77: 195*195*40 | D77: Gr12mov | F77: 30 | G77: 155 | H77: 4650 | I77: Gr12mov
A78: 74 | B78: 板材 | C78: 110*50*37 | D78: SKD11 | F78: 15 | G78: 24 | H78: 360 | I78: SKD11
A79: 75 | B79: 板材 | C79: 75*42*30 | D79: SKD11 | F79: 15 | G79: 15 | H79: 225 | I79: SKD11
A80: 76 | B80: 板材 | C80: 85*37*25 | D80: M2 | F80: 15 | G80: 11 | H80: 165 | I80: M2
A81: 77 | B81: 板材 | C81: 195*195*20 | D81: 45# | F81: 15 | G81: 82 | H81: 1230 | I81: 45#
A82: 78 | B82: 板材 | C82: 195*60*30 | D82: Ggr12mov | F82: 15 | G82: 36 | H82: 540 | I82: Ggr12mov
A83: 79 | B83: 板材 | C83: 100*50*25 | D83: Ggr12mov | F83: 15 | G83: 16 | H83: 240 | I83: Ggr12mov
A84: 80 | B84: 样冲 | D84: T10A | F84: 20 | G84: 12 | H84: 240 | I84: T10A
A85: 81 | B85: 高度尺划线锁扣 | D85: 成量上工哈量 | F85: 10 | G85: 30 | H85: 300 | I85: 成量上工哈量
A86: 82 | B86: 计算器 | F86: 3 | G86: 30 | H86: 90
A87: 83 | B87: 麻花钻 | C87: Ø3 | D87: 含钴 | E87: 支 | F87: 30 | G87: 5 | H87: 150 | I87: 含钴
A88: 84 | B88: 麻花钻 | C88: Ø5.8 | D88: 含钴 | E88: 支 | F88: 20 | G88: 17 | H88: 340 | I88: 含钴
A89: 85 | B89: 麻花钻 | C89: Ø7.8 | D89: 含钴 | E89: 支 | F89: 20 | G89: 22 | H89: 440 | I89: 含钴
A90: 86 | B90: 铰刀 | C90: Ø6H7 | D90: 成量上工哈量 | E90: 把 | F90: 10 | G90: 18 | H90: 180
A91: 87 | B91: 铰刀 | C91: Ø8H7 | D91: 成量上工哈量 | E91: 把 | F91: 10 | G91: 29 | H91: 290
A92: 88 | B92: 销钉 | C92: Ø10*20 | D92: 成量上工哈量 | E92: 个 | F92: 50 | G92: 4 | H92: 200
A93: 89 | B93: 塞规 | C93: Ø20 | D93: 成量上工哈量 | E93: 支 | F93: 5 | G93: 88 | H93: 440
A94: 90 | B94: 等柄钻头 | C94: Ø19 | D94: 成量上工哈量 | E94: 支 | F94: 5 | G94: 42 | H94: 210 | I94: 含钴
A95: 91 | B95: 内六角螺钉 | C95: M5mm*30 | D95: 304不锈钢 | E95: 颗 | F95: 100 | G95: 1 | H95: 100 | I95: 不锈钢
A96: 92 | B96: 内六角螺钉 | C96: M6mm*35 | D96: 304不锈钢 | E96: 颗 | F96: 100 | G96: 1 | H96: 100 | I96: 不锈钢
A97: 93 | B97: 内六角螺钉 | C97: M8mm*50 | D97: 304不锈钢 | E97: 颗 | F97: 100 | G97: 1 | H97: 100 | I97: 不锈钢
A98: 94 | B98: 内六角螺钉 | C98: M10mm*100 | D98: 304不锈钢 | E98: 颗 | F98: 100 | G98: 2 | H98: 200 | I98: 不锈钢
A99: 95 | B99: 内六角螺钉 | C99: M12mm*100 | D99: 304不锈钢 | E99: 颗 | F99: 100 | G99: 3 | H99: 300 | I99: 不锈钢
A100: 96 | B100: 圆钢 | C100: φ50 | D100: GGr15 | E100: 米 | F100: 18 | G100: 125 | H100: 2250 | I100: Gr12mov
A101: 97 | B101: 圆钢 | C101: φ45 | D101: 201 | E101: 米 | F101: 18 | G101: 108 | H101: 1944 | I101: 3Gr13
A102: 98 | B102: V型台 | C102: 精展 | D102: 55004-04-A4 | E102: 套 | F102: 3 | G102: 400 | H102: =G102*F102 -> 1200 | I102: 精展 | J102: 数铣
A103: 99 | B103: 聚四氟乙希 | D103: 750*750*20 | E103: 件 | F103: 4 | G103: 260 | H103: 1040
A104: 100 | B104: 铝材 | C104: 7075 | D104: 100x100x50 | E104: 件 | F104: 200 | G104: 67 | H104: 13400
A105: 101 | B105: 立铣刀 | C105: 哈量关中 | D105: φ8 | E105: 支 | F105: 100 | G105: 22 | H105: 2200 | I105: 哈量关中
A106: 102 | B106: 立铣刀 | C106: 哈量关中 | D106: φ10 | E106: 支 | F106: 100 | G106: 25 | H106: 2500 | I106: 哈量关中
A107: 103 | B107: 立铣刀 | C107: 哈量关中 | D107: φ12 | E107: 支 | F107: 100 | G107: 27 | H107: 2700 | I107: 哈量关中
A108: 104 | B108: BT40盘铣刀 | C108: 特固克、狮王、山特维克 | E108: 把 | F108: 5 | G108: 70 | H108: 350 | I108: 特固克、狮王、山特维克
A109: 105 | B109: 精密虎钳配套压板螺栓螺母 | E109: 套 | F109: 10 | G109: 50 | H109: 500
A110: 106 | B110: 多孔插排 | C110: 公牛5米10插位 | E110: 个 | F110: 10 | G110: 55 | H110: 550
A111: 107 | B111: BT40盘铣刀刀片 | C111: APKT100308PDER-JS SW | E111: 盒 | F111: 10 | G111: 100 | H111: 1000 | I111: 特固克、狮王、山特维克
A112: 108 | B112: 机床冷却液 | C112: 汇众 英飞凡 | E112: 桶 | F112: 5 | G112: 300 | H112: 1500 | I112: 汇众 英飞凡
A113: 109 | B113: 机床电池 | C113: BR-2/3AGCT4A进口款 | E113: 个 | F113: 10 | G113: 55 | H113: 550
A114: 110 | B114: 圆钢 | C114: ￠50 | D114: 碳圆 | E114: 米 | F114: 6 | G114: 125 | H114: 750 | I114: 1碳圆、Gr12mov
A115: 111 | B115: 圆钢 | C115: Φ35 | D115: 12米碳圆、12米Gr12mov | E115: 米 | F115: 24 | G115: 98 | H115: 2352 | I115: 碳圆、3Gr13 | J115: 普车
A116: 112 | B116: 圆钢 | C116: Ø40 | D116: 6米碳圆、6米3Gr13 | E116: 米 | F116: 12 | G116: 102 | H116: 1224 | I116: 碳圆、9Gr18mov
A117: 113 | B117: 圆钢 | C117: Ø45 | D117: 6米碳圆、6米9Gr18mov | E117: 米 | F117: 12 | G117: 108 | H117: 1296 | I117: 碳圆、9Gr18mov
A118: 114 | B118: 方钢 | C118: 65mn | D118: 16*16mm | E118: 米 | F118: 12 | G118: 25 | H118: 300 | I118: 65mn
A119: 115 | B119: 扁钢 | C119: 65mn | D119: 6*16mm | E119: 米 | F119: 12 | G119: 15 | H119: 180 | I119: 65mn
A120: 116 | B120: 白钢刀 | C120: 上工超硬HSS | D120: 4X16X200 | E120: 把 | F120: 60 | G120: 16 | H120: 960 | I120: 上工超硬
A121: 117 | B121: 白钢刀 | C121: 上工超硬HSS | D121: 12X12X200 | E121: 把 | F121: 60 | G121: 35 | H121: 2100 | I121: 上工超硬
A122: 118 | B122: 白钢刀 | C122: 上工超硬HSS | D122: 8X10X200 | E122: 把 | F122: 60 | G122: 30 | H122: 1800 | I122: 上工超硬
A123: 119 | B123: 砂轮 | C123: 诺顿 | D123: 250*25*32 | E123: 块 | F123: 20 | G123: 82 | H123: 1640
A124: 120 | B124: 机夹三角刀片 | C124: 31303C | D124: 30片装YW15 | E124: 盒 | F124: 20 | G124: 110 | H124: 2200 | I124: 株钻原厂
A125: 121 | B125: 棉纱 | D125: 60KG | E125: 袋 | F125: 3 | G125: 200 | H125: 600 | I125: 60KG
A126: 122 | B126: A型中心钻 | C126: Φ3 | D126: 上工172不带护柄12mm | E126: 支 | F126: 50 | G126: 10 | H126: 500 | I126: 上工172不带护柄12mm
A127: 123 | B127: A型中心钻 | C127: Φ4 | D127: 上工172不带护柄12mm | E127: 支 | F127: 50 | G127: 13 | H127: 650 | I127: 上工172不带护柄12mm
A128: 124 | B128: 肥皂 | C128: 雕牌242克一块 | E128: 块 | F128: 150 | G128: 3 | H128: 450
A129: 125 | B129: 洗衣粉 | C129: 雕牌 | D129: 252g | E129: 袋 | F129: 400 | G129: 3 | H129: 1200
A130: 126 | B130: 木糠 | E130: 袋 | F130: 4 | G130: 60 | H130: 240 | I130: 50KG
A131: 127 | B131: 莫氏锥柄套 | C131: 莫氏4号 | D131: 上工哈量 | E131: 个 | F131: 10 | G131: 40 | H131: 400
A132: 128 | B132: 莫氏锥柄套 | C132: 莫氏3号 | D132: 上工哈量 | E132: 个 | F132: 10 | G132: 20 | H132: 200
A133: 129 | B133: 机油 | D133: 18L | E133: 桶 | F133: 10 | G133: 220 | H133: 2200 | I133: 长城
A134: 130 | B134: 带锯片 | D134: 3150mm钨钢NACHI | E134: 条 | F134: 10 | G134: 142 | H134: 1420 | I134: 钨钢NACHI
A135: 131 | B135: 油污清洗剂 | D135: 30kg | E135: 桶 | F135: 2 | G135: 245 | H135: 490 | I135: 宝洁
E136: 小计 | H136: =SUM(H5:H135) -> 178192
A137: 电工电子专业
A138: 1 | B138: 7股铜芯线 | C138: 桂林电线电缆厂 | D138: 1.5平方（红、蓝） | E138: 米 | F138: 1000 | G138: 1.4 | H138: =G138*F138 -> 1400 | J138: 机电一体化、电气自动化设备安装与维修
A139: 2 | B139: 单股铜芯线 | C139: 桂林电线电缆厂 | D139: 1平方（红、蓝） | E139: 米 | F139: 15000 | G139: 1.15 | H139: =G139*F139 -> 17250
A140: 3 | B140: 多股铜芯线 | C140: 桂林电线电缆厂 | D140: 0.75平方（红、蓝） | E140: 米 | F140: 1000 | G140: 0.7 | H140: 700
A141: 4 | B141: 多股铜芯线 | C141: 桂林电线电缆厂 | D141: 2.5平方 | E141: 米 | F141: 500 | G141: 2.4 | H141: 1200
A142: 5 | B142: 单股铝芯线 | C142: 桂林电线电缆厂 | D142: 2.5平方（红、蓝） | E142: 米 | F142: 10000 | G142: 0.3 | H142: 3000
A143: 6 | B143: 多股铝芯线 | C143: 桂林电线电缆厂 | D143: 10平方 | E143: 米 | F143: 300 | G143: 1.5 | H143: 450
A144: 7 | B144: 2芯耐高温硅橡胶护套电源电缆线 | D144: 2*0.5平方 | E144: 米 | F144: 200 | G144: 2.4 | H144: 480
A145: 8 | B145: 电脑电源线 | C145: 10A 国标 | D145: 一分二品字尾 | E145: 个 | F145: 25 | G145: 12 | H145: 300
A146: 9 | B146: 香蕉触头高压安全护套测试线 | C146: 优吉熊 | D146: 3mm红色20cm长 | E146: 根 | F146: 500 | G146: 3.5 | H146: 1750
A147: 10 | B147: 香蕉触头高压安全护套测试线 | C147: 优吉熊 | D147: 3mm绿色20cm长 | E147: 根 | F147: 500 | G147: 3.5 | H147: 1750
A148: 11 | B148: 香蕉触头高压安全护套测试线 | C148: 优吉熊 | D148: 3mm黑色20cm长 | E148: 根 | F148: 500 | G148: 3.5 | H148: 1750
A149: 12 | B149: 大功率二极管 | D149: 10A1000V | E149: 个 | F149: 100 | G149: 1 | H149: 100
A150: 13 | B150: 桥型零线端子排铜排接线柱 | D150: 6孔 | E150: 根 | F150: 35 | G150: 2 | H150: 70
A151: 14 | B151: 半圆头螺丝 | C151: 304不锈钢大扁头十字 | D151: M4*12（头部直径8mm） | E151: 个 | F151: 500 | G151: 0.15 | H151: 75
A152: 15 | B152: 螺帽 | C152: 不锈钢六角防滑带垫螺丝帽 | D152: M4 | E152: 个 | F152: 500 | G152: 0.12 | H152: 60
A153: 16 | B153: 自攻钉 | C153: 4*25 | D153: 不锈钢 | E153: 颗 | F153: 1000 | G153: 0.03 | H153: 30
A154: 17 | B154: 自攻钉 | C154: 4*16 | D154: 不锈钢 | E154: 颗 | F154: 1000 | G154: 0.03 | H154: 30
A155: 18 | B155: 大扁头自钻燕尾钉 | C155: 3.5*13 | D155: 不锈钢 | E155: 颗 | F155: 1000 | G155: 0.03 | H155: 30
A156: 19 | B156: 大扁头自钻燕尾钉 | C156: 4.2*13 | D156: 不锈钢 | E156: 颗 | F156: 1000 | G156: 0.03 | H156: 30
A157: 20 | B157: 银灰PVC行线槽 | C157: 加厚 | D157: 35mm高*35mm宽 | E157: 米 | F157: 200 | G157: 3 | H157: 600
A158: 21 | B158: 黑胶布 | C158: 防水PVC电气胶带 | D158: 16mm—18mm宽 | E158: 卷 | F158: 30 | G158: 2 | H158: 60
A159: 22 | B159: 热继电器 | C159: 正泰NR4-63 | D159: 2.5-4A | E159: 个 | F159: 80 | G159: 40 | H159: 3200
A160: 23 | B160: 接线排 | C160: TD--2030 | E160: 条 | F160: 80 | G160: 15 | H160: 1200
A161: 24 | B161: 接线排 | C161: UK2.5 | D161: 25位带导轨 | E161: 条 | F161: 40 | G161: 18 | H161: 720
A162: 25 | B162: 接触器 | C162: 正泰CJX2-1210 | D162: 线圈电压380V | E162: 个 | F162: 200 | G162: 45 | H162: 9000
A163: 26 | B163: 接触器 | C163: 正泰CJX2-1211 | D163: 线圈电压36V | E163: 个 | F163: 100 | G163: 45 | H163: 4500
A164: 27 | B164: 辅助触头 | C164: 正泰F4-22 | D164: 2常开2常闭 | E164: 个 | F164: 100 | G164: 10 | H164: 1000
A165: 28 | B165: 空气延时头 | C165: 正泰 | D165: F5-D2(0.1s-30s) | E165: 个 | F165: 50 | G165: 45 | H165: 2250
A166: 29 | B166: 空气延时头 | C166: 正泰 | D166: F5-T2(0.1s-30s) | E166: 个 | F166: 50 | G166: 45 | H166: 2250
A167: 30 | B167: 三级空开 | C167: 德力西 3A | D167: 3P | E167: 个 | F167: 50 | G167: 18 | H167: 900
A168: 31 | B168: 导轨切断器 | C168: DC-35 | D168: 双切槽 | E168: 个 | F168: 1 | G168: 150 | H168: 150
A169: 32 | B169: 异型号码管 | D169: 1.5平方 | E169: 卷 | F169: 20 | G169: 7 | H169: 140
A170: 33 | B170: 异型号码管 | D170: 2.5平方 | E170: 卷 | F170: 20 | G170: 7 | H170: 140
A171: 34 | B171: U形冷压端子 | C171: （1000一包） | D171: UT1-3 | E171: 包 | F171: 4 | G171: 40 | H171: =G171*F171 -> 160
A172: 35 | B172: U形冷压端子 | C172: （1000一包） | D172: UT1.5-4 | E172: 包 | F172: 4 | G172: 40 | H172: 160
A173: 36 | B173: 预绝缘冷压管形端子 | D173: E1010（1000一包）红、蓝 | E173: 包 | F173: 4 | G173: 25 | H173: 100
A174: 37 | B174: 预绝缘冷压管形端子 | D174: E0510（1001一包）红、蓝 | E174: 包 | F174: 4 | G174: 25 | H174: 100
A175: 38 | B175: 手套 | C175: 3M | D175: 劳保手套丁腈涂掌浸胶（L码） | E175: 套 | F175: 20 | G175: 30 | H175: 600
A176: 39 | B176: 公牛插座专用螺丝刀起子工具 | C176: 德力西 | D176: 加强款S2螺丝刀5*75（5件套） | E176: 套 | F176: 2 | G176: 30 | H176: 60
A177: 40 | B177: 抽屉式收纳箱 | C177: 18升 | D177: 塑料 | E177: 个 | F177: 20 | G177: 40 | H177: 800
A178: 41 | B178: 四极插头 | C178: 16A | E178: 个 | F178: 40 | G178: 10 | H178: 400
A179: 42 | B179: 三极插头 | C179: 10A | E179: 个 | F179: 20 | G179: 2 | H179: 40
A180: 43 | B180: 一开双控开关 | C180: 正泰 | D180: 明装 | E180: 个 | F180: 200 | G180: 12 | H180: 2400
A181: 44 | B181: 三孔按钮盒 | C181: JL-BX3 | D181: 白色 | E181: 个 | F181: 100 | G181: 10 | H181: 1000
A182: 45 | B182: 按钮 | C182: 乐清三力LA68B按钮开关 | D182: 红 | E182: 个 | F182: 100 | G182: 7 | H182: 700
A183: 46 | B183: 按钮 | C183: 乐清三力LA68B按钮开关 | D183: 绿 | E183: 个 | F183: 200 | G183: 7 | H183: 1400
A184: 47 | B184: PLC编程下载线 | C184: USB-SC09-FX经济型 | D184: 适用于三菱FX系列PLC | E184: 条 | F184: 50 | G184: 35 | H184: 1750
A185: 48 | B185: DB9母头（232焊接头） | C185: 蓝胶母头+灰色塑壳 | D185: 2排9针塑料外壳 | E185: 个 | F185: 40 | G185: 2 | H185: 80
A186: 49 | B186: 万能胶 | C186: 晨光 | D186: 20ml | E186: 支 | F186: 20 | G186: 6 | H186: 120
A187: 50 | B187: 热熔枪 | C187: 德力西 | D187: 40W | E187: 支 | F187: 2 | G187: 20 | H187: 40
A188: 51 | B188: 鼠标 | D188: USB口 | E188: 个 | F188: 10 | G188: 12 | H188: 120
A189: 52 | B189: 二极管 | C189: 晶闸管调压电路 | D189: 1N4007 | E189: 个 | F189: 1200 | G189: 0.1 | H189: 120
A190: 53 | B190: 晶闸管 | D190: 2P4M | E190: 个 | F190: 300 | G190: 1 | H190: 300
A191: 54 | B191: 电阻 | D191: 240Ω、1/2W | E191: 个 | F191: 300 | G191: 0.1 | H191: 30
A192: 55 | B192: 电阻 | D192: 51Ω、1/2W | E192: 个 | F192: 300 | G192: 0.1 | H192: 30
A193: 56 | B193: 电阻 | D193: 2KΩ、1/2W | E193: 个 | F193: 300 | G193: 0.1 | H193: 30
A194: 57 | B194: 电阻 | D194: 1KΩ、1/2W | E194: 个 | F194: 300 | G194: 0.1 | H194: 30
A195: 58 | B195: 电位器 | D195: WSW1、 100KΩ | E195: 个 | F195: 300 | G195: 0.1 | H195: 30
A196: 59 | B196: 单结晶体管 | D196: BT33 | E196: 个 | F196: 300 | G196: 2 | H196: 600
A197: 60 | B197: 稳压管 | D197: 1N4735（6.2V） | E197: 个 | F197: 300 | G197: 0.1 | H197: 30
A198: 61 | B198: 小电珠、灯座 | D198: 12V 0.1W | E198: 套 | F198: 300 | G198: 1.5 | H198: 450
A199: 62 | B199: 电容 | D199: 0.2μF/50V | E199: 个 | F199: 300 | G199: 0.1 | H199: 30
A200: 63 | B200: 小号自封袋 | D200: 厚16丝（8*12mm） | E200: 个 | F200: 300 | G200: 0.05 | H200: 15
... 94 more rows

Sheet Sheet1
